bitfinex/quotes_SOLUSD_20250201
["timestamp","ask_amount","ask_price","bid_price","bid_amount"]
[1738413363182,8.11266092,228.47,228.41,10.9516]
[1738413363584,8.11266092,228.47,228.41,6.5736]
[1738413363750,8.11266092,228.46,228.41,6.5736]
[1738413364579,8.11266092,228.47,228.41,6.5736]
[1738413365149,0.12549,228.46,228.41,6.5736]
[1738413365463,8.11266092,228.43,228.4,1.5541]
[1738413365650,8.11266092,228.43,228.36,17.56626092]
[1738413365857,8.11266092,228.43,228.36,21.94516092]
[1738413366051,8.11266092,228.44,228.37,8.11266092]
[1738413366283,8.11266092,228.45,228.38,8.11266092]
[1738413366480,82.44042478,228.44,228.38,8.11266092]
[1738413366781,82.44042478,228.44,228.39,8.11266092]
[1738413367082,82.44042478,228.44,228.41,8.11266092]
[1738413367573,82.44042478,228.44,228.4,8.11266092]
[1738413368892,82.44042478,228.44,228.41,8.11266092]
[1738413369376,82.44042478,228.44,228.42,8.11266092]
[1738413371362,82.44042478,228.44,228.41,12.49066092]
[1738413372294,82.44042478,228.44,228.41,8.11266092]
[1738413372469,8.11266092,228.47,228.4,8.11266092]
[1738413373696,8.11266092,228.47,228.4,12.49086092]
[1738413373897,90.6785757,228.48,228.41,8.11266092]
[1738413374593,8.11266092,228.47,228.4,8.11266092]
[1738413374988,1.81266092,228.47,228.4,8.11266092]
[1738413376992,1.81266092,228.47,228.39,8.11266092]
[1738413377188,8.11266092,228.46,228.38,8.11266092]
[1738413377399,8.11266092,228.44,228.37,8.11266092]
[1738413378093,0.12549,228.44,228.37,8.11266092]
[1738413378798,0.12549,228.44,228.37,12.49146092]
[1738413378975,0.12549,228.44,228.38,8.11266092]
[1738413379293,0.12549,228.45,228.39,8.11266092]
[1738413379895,90.5530857,228.46,228.41,8.11266092]
[1738413379896,82.44042478,228.46,228.41,8.11266092]
[1738413380284,0.12549,228.45,228.4,8.11266092]
[1738413382496,82.44042478,228.46,228.42,8.11266092]
[1738413383995,82.44042478,228.46,228.41,8.11266092]
[1738413385500,82.44042478,228.46,228.42,8.11266092]
[1738413386277,82.44042478,228.46,228.45,8.11266092]
[1738413386502,8.11266092,228.46,228.38,0.65658014]
[1738413386702,8.11266092,228.42,228.35,1.5541]
[1738413387412,8.11266092,228.44,228.36,8.11266092]
[1738413387576,8.11266092,228.44,228.36,12.49156092]
[1738413387994,0.12549,228.45,228.38,8.11266092]
[1738413388591,8.11266092,228.48,228.4,8.11266092]
[1738413391300,8.11266092,228.48,228.4,12.49086092]
[1738413393506,8.11266092,228.48,228.4,8.11266092]
[1738413393704,8.11266092,228.46,228.38,14.37386092]
[1738413400605,8.11266092,228.46,228.38,18.75246092]
[1738413401731,8.11266092,228.46,228.39,2.60269066]
[1738413403002,8.11266092,228.46,228.38,18.75246092]
[1738413405830,8.11266092,228.46,228.39,2.60451142]
[1738413406145,8.11266092,228.48,228.4,25.90270945]
[1738413406303,82.44042478,228.52,228.44,8.11266092]
[1738413406705,8.11266092,228.51,228.44,8.11266092]
[1738413407508,8.11266092,228.51,228.43,12.49026092]
[1738413409030,8.11266092,228.51,228.44,2.60291123]
[1738413409242,8.11266092,228.51,228.44,5.8558648]
[1738413410234,0.12549,228.5,228.45,3.25295357]
[1738413411526,8.11266092,228.5,228.45,3.25295357]
[1738413412032,8.11266092,228.5,228.46,3.25295357]
[1738413412935,8.23815092,228.51,228.46,3.25295357]
[1738413413339,8.23815092,228.51,228.43,8.11266092]
[1738413413636,82.44042478,228.52,228.45,8.11266092]
[1738413413823,82.44042478,228.52,228.47,8.11266092]
[1738413414022,82.44042478,228.52,228.49,8.11266092]
[1738413414515,8.11266092,228.58,228.5,8.11266092]
[1738413414715,8.11266092,228.57,228.5,8.11266092]
[1738413414927,8.23815092,228.56,228.49,8.11266092]
[1738413415420,0.12549,228.56,228.49,8.11266092]
[1738413415806,8.11266092,228.56,228.5,3.24846947]
[1738413417336,8.11266092,228.56,228.49,8.11266092]
[1738413417532,8.23815092,228.53,228.48,1.5403]
[1738413417837,8.11266092,228.52,228.48,1.5403]
[1738413418267,8.11266092,228.5,228.46,6.5658]
[1738413418421,8.11266092,228.47,228.42,1.5921]
[1738413418931,8.11266092,228.5,228.42,9.70476092]
[1738413419125,8.11266092,228.5,228.42,1.5921]
[1738413419330,90.5530857,228.52,228.45,8.11266092]
[1738413421943,0.12549,228.51,228.45,8.11266092]
[1738413422633,82.44042478,228.52,228.47,8.11266092]
[1738413422818,8.11266092,228.56,228.48,8.11266092]
[1738413423143,8.11266092,228.55,228.48,8.11266092]
[1738413423625,8.11266092,228.54,228.47,8.11266092]
[1738413424754,8.11266092,228.55,228.48,8.11266092]
[1738413425044,8.11266092,228.55,228.48,14.39596092]
[1738413425546,8.11266092,228.58,228.51,8.11266092]
[1738413425726,8.11266092,228.59,228.52,8.11266092]
[1738413426245,90.5530857,228.6,228.53,8.11266092]
[1738413426544,82.44042478,228.6,228.53,8.11266092]
[1738413426715,0.12549,228.59,228.53,8.11266092]
[1738413427441,0.12549,228.59,228.52,8.11266092]
[1738413428122,8.11266092,228.58,228.51,12.48866092]
[1738413429648,8.11266092,228.58,228.5,8.11266092]
[1738413429853,8.11266092,228.56,228.49,1.5921]
[1738413430234,8.11266092,228.55,228.49,1.5921]
[1738413431419,8.23815092,228.57,228.49,9.70476092]
[1738413431822,8.11266092,228.54,228.49,1.5921]
[1738413432055,8.11266092,228.53,228.49,1.5921]
[1738413432543,8.11266092,228.57,228.49,9.70476092]
[1738413432719,8.11266092,228.56,228.49,9.70476092]
[1738413432923,8.11266092,228.55,228.49,1.5921]
[1738413433119,8.11266092,228.53,228.49,1.5921]
[1738413433543,1.0,228.44,228.4,6.81999902]
[1738413433740,8.11266092,228.41,228.4,6.81999902]
[1738413435343,0.12549,228.4,228.3,8.11266092]
[1738413435544,0.12549,228.4,228.28,7.8754]
[1738413435545,8.11266092,228.37,228.29,8.11266092]
[1738413435744,12.67076462,228.37,228.29,12.67076462]
[1738413436649,12.67076462,228.37,228.3,12.67076462]
[1738413437467,12.67076462,228.37,228.29,12.67076462]
[1738413438649,1.0,228.44,228.28,7.8754]
[1738413438650,12.67076462,228.41,228.34,12.67076462]
[1738413438879,32.67076462,228.39,228.32,12.67076462]
[1738413439042,12.67076462,228.37,228.29,12.67076462]
[1738413439948,12.67076462,228.36,228.3,13.41184853]
[1738413440966,12.67076462,228.36,228.28,20.54616462]
[1738413441267,82.6,228.4,228.28,20.54616462]
[1738413441268,12.67076462,228.35,228.28,20.54616462]
[1738413441443,12.67076462,228.35,228.28,12.2559]
[1738413442963,12.67076462,228.34,228.28,12.2559]
[1738413443370,12.67076462,228.35,228.28,24.92666462]
[1738413443744,12.67076462,228.36,228.29,12.67076462]
[1738413444073,12.67076462,228.38,228.31,12.67076462]
[1738413444575,82.6,228.4,228.33,12.67076462]
[1738413444773,20.0,228.39,228.34,12.67076462]
[1738413445353,32.67076462,228.41,228.33,12.67076462]
[1738413445976,12.67076462,228.39,228.33,13.41184853]
[1738413446183,12.67076462,228.38,228.33,13.41184853]
[1738413446669,12.67076462,228.38,228.3,17.05076462]
[1738413446879,12.67076462,228.35,228.28,24.92656462]
[1738413447079,12.67076462,228.34,228.28,12.2558]
[1738413447451,12.67076462,228.35,228.29,13.41184853]
[1738413448854,0.12549,228.4,228.29,13.41184853]
[1738413448855,12.67076462,228.36,228.29,26.08261315]
[1738413449766,12.67076462,228.35,228.29,13.41184853]
[1738413450963,20.0,228.32,228.28,12.67076462]
[1738413451165,12.67076462,228.3,228.25,4.76976998]
[1738413451373,12.67076462,228.26,228.25,4.76976998]
[1738413454393,12.79625462,228.26,228.25,4.76976998]
[1738413455386,83.6,228.34,228.25,4.76976998]
[1738413455387,12.67076462,228.28,228.25,4.76976998]
[1738413456686,12.67076462,228.27,228.25,4.76976998]
[1738413457187,12.67076462,228.28,228.25,4.76976998]
[1738413457690,82.6,228.34,228.27,12.67076462]
[1738413457869,82.6,228.34,228.29,12.67076462]
[1738413459889,82.6,228.34,228.28,17.05116462]
[1738413460190,82.6,228.34,228.29,12.67076462]
[1738413460397,95.27076462,228.34,228.27,12.67076462]
[1738413460572,95.27076462,228.34,228.26,12.67076462]
[1738413461073,95.27076462,228.34,228.27,12.67076462]
[1738413461274,82.6,228.34,228.27,12.67076462]
[1738413461673,82.6,228.34,228.27,17.05136462]
[1738413463987,82.6,228.34,228.28,5.9775]
[1738413464699,82.6,228.34,228.29,12.67076462]
[1738413467003,82.6,228.34,228.29,17.05106462]
[1738413467496,12.67076462,228.37,228.29,17.05106462]
[1738413468587,12.67076462,228.4,228.32,12.67076462]
[1738413468781,82.6,228.42,228.31,12.67076462]
[1738413468782,12.67076462,228.39,228.31,12.67076462]
[1738413469000,82.6,228.42,228.31,12.67076462]
[1738413469001,12.67076462,228.38,228.31,12.67076462]
[1738413469181,12.67076462,228.38,228.3,23.45556462]
[1738413469797,12.67076462,228.38,228.31,17.05066462]
[1738413470378,12.67076462,228.38,228.31,17.01762162]
[1738413471401,12.67076462,228.37,228.3,6.4047]
[1738413471605,12.67076462,228.36,228.3,6.4047]
[1738413472291,12.67076462,228.34,228.3,6.4047]
[1738413472496,12.67076462,228.32,228.25,17.4405346]
[1738413472685,12.67076462,228.32,228.25,9.15076998]
[1738413472883,12.67076462,228.31,228.25,9.15076998]
[1738413473807,12.67076462,228.33,228.25,9.15076998]
[1738413473996,12.67076462,228.33,228.25,21.8215346]
[1738413474209,12.67076462,228.33,228.26,17.05166462]
[1738413474580,12.67076462,228.34,228.26,17.05166462]
[1738413475816,12.67076462,228.34,228.27,13.41184853]
[1738413475982,12.67076462,228.34,228.27,17.79254853]
[1738413476183,12.67076462,228.33,228.26,17.05166462]
[1738413476382,82.6,228.39,228.26,17.05166462]
[1738413476383,12.67076462,228.41,228.32,8.1843]
[1738413477086,0.12549,228.4,228.32,8.1843]
[1738413477409,12.67076462,228.39,228.32,8.1843]
[1738413479294,12.67076462,228.51,228.4,20.0]
[1738413479498,12.67076462,228.51,228.42,20.85506462]
[1738413480212,12.67076462,228.51,228.44,12.67076462]
[1738413481193,12.67076462,228.51,228.43,26.08261315]
[1738413481414,0.12549,228.5,228.43,12.67076462]
[1738413481588,12.67076462,228.49,228.42,8.1843]
[1738413482110,0.12549,228.5,228.43,12.67076462]
[1738413482808,12.67076462,228.51,228.43,26.08261315]
[1738413483115,12.67076462,228.53,228.45,12.67076462]
[1738413484412,12.67076462,228.52,228.45,12.67076462]
[1738413484817,12.67076462,228.58,228.43,13.41184853]
[1738413484818,12.67076462,228.49,228.43,13.41184853]
[1738413484989,12.67076462,228.51,228.43,30.46021315]
[1738413485321,12.67076462,228.51,228.44,12.67076462]
[1738413489892,95.27076462,228.53,228.44,12.67076462]
[1738413491218,82.6,228.53,228.46,12.67076462]
[1738413491389,82.6,228.53,228.48,12.67076462]
[1738413493099,12.67076462,228.59,228.5,12.67076462]
[1738413493304,12.67076462,228.59,228.52,12.67076462]
[1738413493305,82.6,228.58,228.52,12.67076462]
[1738413493518,0.12549,228.52,228.42,8.1843]
[1738413493819,0.12549,228.49,228.42,8.1843]
[1738413500528,12.67076462,228.48,228.42,8.1843]
[1738413500926,12.67076462,228.5,228.42,8.1843]
[1738413501226,12.67076462,228.5,228.42,12.5621]
[1738413501728,12.67076462,228.52,228.45,12.67076462]
[1738413502227,6.3376,228.61,228.52,6.1443]
[1738413502228,12.67076462,228.61,228.52,6.1443]
[1738413502414,12.67076462,228.61,228.54,12.67076462]
[1738413503906,12.67076462,228.61,228.53,17.04646462]
[1738413504317,12.67076462,228.61,228.54,17.04626462]
[1738413505010,12.67076462,228.61,228.54,12.67076462]
[1738413505332,12.67076462,228.6,228.53,12.67076462]
[1738413505517,12.67076462,228.61,228.54,12.67076462]
[1738413507634,12.67076462,228.62,228.55,12.67076462]
[1738413509509,12.67076462,228.61,228.54,12.67076462]
[1738413509836,12.67076462,228.61,228.53,12.67076462]
[1738413510634,12.67076462,228.6,228.53,12.67076462]
[1738413511236,82.6,228.66,228.53,12.67076462]
[1738413511237,82.6,228.62,228.58,12.67076462]
[1738413511543,12.67076462,228.66,228.58,12.67076462]
[1738413511711,12.67076462,228.65,228.58,12.67076462]
[1738413512217,14.04577405,228.64,228.57,12.67076462]
[1738413512423,14.04577405,228.64,228.56,12.67076462]
[1738413513011,14.04577405,228.64,228.57,12.67076462]
[1738413514328,12.67076462,228.63,228.56,12.67076462]
[1738413514633,12.67076462,228.61,228.53,17.04646462]
[1738413514820,12.67076462,228.6,228.53,4.3757]
[1738413515328,82.72549,228.63,228.54,12.67076462]
[1738413515329,12.67076462,228.61,228.54,12.67076462]
[1738413515530,0.12549,228.61,228.56,12.67076462]
[1738413516331,0.12549,228.62,228.56,12.67076462]
[1738413518742,12.67076462,228.61,228.54,12.67076462]
[1738413519240,12.79625462,228.62,228.55,12.67076462]
[1738413519822,0.12549,228.62,228.56,12.67076462]
[1738413521952,12.79625462,228.62,228.55,12.67076462]
[1738413522151,12.67076462,228.61,228.54,12.67076462]
[1738413523431,12.67076462,228.58,228.52,6.1443]
[1738413523932,12.67076462,228.59,228.52,18.81506462]
[1738413524357,12.67076462,228.6,228.53,12.67076462]
[1738413524560,82.6,228.62,228.55,12.67076462]
[1738413524756,82.6,228.62,228.56,12.67076462]
[1738413525268,82.6,228.62,228.58,12.67076462]
[1738413525431,1.37500943,228.64,228.58,12.67076462]
[1738413527261,1.37500943,228.64,228.57,32.67076462]
[1738413527443,1.37500943,228.64,228.58,12.67076462]
[1738413528358,1.37500943,228.64,228.57,32.67076462]
[1738413528560,1.37500943,228.64,228.58,12.67076462]
[1738413531854,1.37500943,228.64,228.58,8.08910385]
[1738413533155,1.37500943,228.64,228.58,12.46390385]
[1738413534062,1.37500943,228.64,228.59,8.08910385]
[1738413534249,1.37500943,228.64,228.6,8.08910385]
[1738413535465,1.37500943,228.64,228.61,8.08910385]
[1738413537268,1.37500943,228.64,228.61,12.46330385]
[1738413539772,1.37500943,228.64,228.61,8.08910385]
[1738413540072,1.37500943,228.64,228.59,12.46350385]
[1738413541084,1.37500943,228.64,228.59,8.08910385]
[1738413541439,1.37500943,228.64,228.58,8.08910385]
[1738413541836,9.46411328,228.64,228.58,20.0]
[1738413542264,8.21459385,228.63,228.58,20.0]
[1738413542583,8.21459385,228.61,228.54,8.08910385]
[1738413542768,8.08910385,228.59,228.52,14.23340385]
[1738413542975,8.08910385,228.59,228.52,18.60930385]
[1738413543547,0.12549,228.58,228.5,13.41184853]
[1738413543743,8.08910385,228.55,228.49,3.0]
[1738413544188,8.08910385,228.56,228.49,11.08910385]
[1738413544485,0.12549,228.56,228.5,8.08910385]
[1738413544981,0.12549,228.56,228.49,3.0]
[1738413544982,8.08910385,228.59,228.52,8.08910385]
[1738413545150,82.6,228.62,228.53,8.08910385]
[1738413545151,8.08910385,228.6,228.53,8.08910385]
[1738413545548,82.6,228.62,228.51,8.08910385]
[1738413545549,8.21459385,228.59,228.51,8.08910385]
[1738413545781,8.08910385,228.58,228.51,8.08910385]
[1738413546163,0.12549,228.55,228.49,11.08910385]
[1738413546361,0.12549,228.55,228.49,3.0]
[1738413546771,8.21459385,228.53,228.46,8.08910385]
[1738413547572,6.71459385,228.53,228.46,8.08910385]
[1738413547879,6.71459385,228.53,228.47,2.59592322]
[1738413548679,8.08910385,228.56,228.48,8.08910385]
[1738413548887,8.08910385,228.57,228.5,8.08910385]
[1738413549387,8.08910385,228.56,228.49,8.08910385]
[1738413550509,8.08910385,228.55,228.48,12.46580385]
[1738413551180,8.08910385,228.56,228.49,8.08910385]
[1738413551703,90.68910385,228.57,228.5,8.08910385]
[1738413551871,82.6,228.57,228.52,8.08910385]
[1738413552071,82.6,228.57,228.53,8.08910385]
[1738413553293,82.6,228.57,228.55,8.08910385]
[1738413553594,82.6,228.57,228.56,8.08910385]
[1738413554001,82.6,228.63,228.56,8.08910385]
[1738413554195,82.6,228.62,228.57,8.08910385]
[1738413554376,82.6,228.62,228.58,8.08910385]
[1738413554577,82.6,228.62,228.59,8.08910385]
[1738413555177,82.6,228.62,228.58,8.08910385]
[1738413555701,82.6,228.62,228.57,12.6406488]
[1738413556774,82.6,228.62,228.56,17.0156488]
[1738413557398,82.6,228.62,228.55,26.05249733]
[1738413557584,12.6406488,228.6,228.53,12.6406488]
[1738413557781,12.6406488,228.59,228.52,12.6406488]
[1738413558604,12.6406488,228.59,228.52,17.0165488]
[1738413558983,12.6406488,228.6,228.53,12.6406488]
[1738413560077,82.6,228.62,228.56,12.6406488]
[1738413560279,82.6,228.62,228.57,12.6406488]
[1738413561578,82.6,228.62,228.56,12.6406488]
[1738413562080,82.6,228.62,228.56,17.0157488]
[1738413562977,82.6,228.62,228.56,4.3751]
[1738413564200,82.6,228.62,228.54,12.6406488]
[1738413564408,12.6406488,228.58,228.51,12.6406488]
[1738413564609,12.6406488,228.59,228.52,12.6406488]
[1738413564822,12.6406488,228.6,228.53,12.6406488]
[1738413565194,12.6406488,228.59,228.52,12.6406488]
[1738413570125,12.6406488,228.59,228.51,17.0167488]
[1738413570790,12.6406488,228.58,228.51,17.0167488]
[1738413572532,12.6406488,228.59,228.51,17.0167488]
[1738413577730,8.09351065,228.59,228.52,8.09351065]
[1738413579634,8.09351065,228.6,228.52,8.09351065]
[1738413580552,82.6,228.59,228.52,8.09351065]
[1738413581561,90.69351065,228.59,228.52,8.09351065]
[1738413583160,8.09351065,228.58,228.51,8.09351065]
[1738413584939,8.09351065,228.58,228.51,12.46951065]
[1738413589853,82.6,228.59,228.53,8.09351065]
[1738413591262,82.6,228.59,228.53,12.46911065]
[1738413592939,8.09351065,228.58,228.51,8.09351065]
[1738413594052,8.09351065,228.58,228.52,4.3759]
[1738413596558,82.6,228.59,228.52,4.3759]
[1738413596849,82.6,228.59,228.51,8.09351065]
[1738413597055,82.6,228.59,228.49,1.5849]
[1738413597056,8.09351065,228.54,228.49,1.5849]
[1738413600478,8.09351065,228.55,228.49,1.5849]
[1738413600769,8.09351065,228.56,228.49,9.67841065]
[1738413601256,82.6,228.56,228.49,9.67841065]
[1738413602263,82.6,228.56,228.51,8.09351065]
[1738413602472,82.6,228.56,228.53,8.09351065]
[1738413602769,82.6,228.56,228.51,8.09351065]
[1738413606366,82.6,228.56,228.51,12.46961065]
[1738413607370,8.09351065,228.58,228.51,12.46961065]
[1738413610684,8.09351065,228.57,228.49,14.05471065]
[1738413610854,8.09351065,228.55,228.49,1.5849]
[1738413613779,82.6,228.62,228.46,8.09351065]
[1738413613780,8.09351065,228.53,228.46,8.09351065]
[1738413613978,8.09351065,228.53,228.45,11.01351065]
[1738413615282,90.69351065,228.54,228.47,8.09351065]
[1738413615460,90.69351065,228.54,228.44,17.78924853]
[1738413615461,82.6,228.54,228.51,8.09351065]
[1738413615865,82.6,228.54,228.47,8.09351065]
[1738413617592,82.6,228.54,228.48,8.09351065]
[1738413619970,82.6,228.54,228.47,8.09351065]
[1738413620173,90.69351065,228.54,228.47,8.09351065]
[1738413620692,90.69351065,228.54,228.46,8.09351065]
[1738413620863,82.6,228.53,228.46,8.09351065]
[1738413622791,90.69351065,228.53,228.46,8.09351065]
[1738413624507,90.69351065,228.53,228.44,8.09351065]
[1738413625181,8.09351065,228.51,228.44,8.09351065]
[1738413625700,8.09351065,228.51,228.43,13.99551065]
[1738413626111,8.09351065,228.49,228.42,8.09351065]
[1738413626275,8.09351065,228.49,228.41,8.09351065]
[1738413626475,8.09351065,228.49,228.4,4.3782]
[1738413626476,8.09351065,228.48,228.4,12.47171065]
[1738413626972,8.09351065,228.48,228.41,8.09351065]
[1738413628804,8.09351065,228.49,228.42,8.09351065]
[1738413629180,90.69351065,228.5,228.43,8.09351065]
[1738413630601,8.09351065,228.49,228.42,8.09351065]
[1738413631100,82.6,228.48,228.42,8.09351065]
[1738413631999,82.6,228.48,228.43,8.09351065]
[1738413634676,82.6,228.48,228.42,8.09351065]
[1738413634996,82.6,228.48,228.43,8.09351065]
[1738413636580,82.6,228.48,228.42,8.09351065]
[1738413641409,82.6,228.48,228.43,8.09351065]
[1738413644483,82.6,228.48,228.42,8.09351065]
[1738413647909,82.6,228.48,228.43,8.09351065]
[1738413651624,82.6,228.48,228.42,8.09351065]
[1738413656191,82.6,228.48,228.42,12.47131065]
[1738413656603,82.6,228.48,228.44,8.09351065]
[1738413656809,82.6,228.48,228.46,8.09351065]
[1738413657012,90.69351065,228.48,228.38,14.07021065]
[1738413657325,8.09351065,228.46,228.38,16.97021065]
[1738413658718,8.09351065,228.46,228.39,8.09351065]
[1738413659018,8.09351065,228.46,228.39,2.59771558]
[1738413659019,82.6,228.45,228.39,2.59771558]
[1738413660316,90.69351065,228.45,228.39,2.59771558]
[1738413660514,82.6,228.45,228.4,8.09351065]
[1738413661232,82.6,228.45,228.42,8.09351065]
[1738413662334,82.6,228.45,228.41,8.09351065]
[1738413663549,82.6,228.45,228.42,8.09351065]
[1738413664550,82.6,228.45,228.41,12.47151065]
[1738413670236,90.69351065,228.44,228.37,4.3787]
[1738413670437,82.6,228.43,228.37,4.3787]
[1738413671531,82.6,228.43,228.38,2.60371136]
[1738413672336,8.09351065,228.41,228.38,2.60371136]
[1738413672639,8.09351065,228.4,228.38,2.60371136]
[1738413672942,8.09351065,228.42,228.39,2.60371136]
[1738413673534,82.6,228.43,228.39,2.60371136]
[1738413673535,82.6,228.43,228.39,10.69722201]
[1738413674544,82.6,228.43,228.39,2.60371136]
[1738413674744,82.6,228.43,228.39,8.09351065]
[1738413675443,82.6,228.43,228.41,8.09351065]
[1738413676827,82.6,228.43,228.4,8.09351065]
[1738413682022,82.6,228.43,228.38,8.09351065]
[1738413683646,82.6,228.43,228.38,32.47201065]
[1738413685248,82.6,228.43,228.39,2.60075504]
[1738413687428,82.6,228.42,228.39,2.60075504]
[1738413687847,82.6,228.42,228.36,12.47251065]
[1738413688447,82.6,228.42,228.36,8.09351065]
[1738413690349,82.6,228.42,228.36,12.47241065]
[1738413690650,82.6,228.42,228.37,8.09351065]
[1738413692754,82.6,228.42,228.39,8.09351065]
[1738413692931,82.6,228.42,228.41,8.09351065]
[1738413693436,82.6,228.48,228.41,8.09351065]
[1738413694148,90.69351065,228.48,228.41,8.09351065]
[1738413695249,90.69351065,228.48,228.4,8.09351065]
[1738413698729,8.09351065,228.47,228.4,8.09351065]
[1738413699355,82.6,228.46,228.4,8.09351065]
[1738413699748,82.6,228.46,228.4,12.47171065]
[1738413702765,82.6,228.46,228.45,8.09351065]
[1738413703065,8.09351065,228.56,228.45,8.09351065]
[1738413703265,8.09351065,228.55,228.48,8.09351065]
[1738413704047,8.09351065,228.54,228.47,28.09351065]
[1738413704669,8.09351065,228.54,228.47,8.09351065]
[1738413705173,8.09351065,228.53,228.46,11.01351065]
[1738413705970,8.09351065,228.51,228.44,8.09351065]
[1738413706157,8.09351065,228.49,228.43,1.6409]
[1738413708275,8.09351065,228.5,228.44,8.09351065]
[1738413709773,8.09351065,228.52,228.45,8.09351065]
[1738413710964,8.09351065,228.54,228.47,8.09351065]
[1738413711568,8.09351065,228.53,228.46,8.09351065]
[1738413711951,82.6,228.55,228.48,8.09351065]
[1738413713176,82.6,228.54,228.49,8.09351065]
[1738413713345,82.6,228.54,228.5,8.09351065]
[1738413716671,82.6,228.54,228.48,8.09351065]
[1738413717971,82.6,228.54,228.47,32.47041065]
[1738413718673,8.09351065,228.52,228.45,12.47061065]
[1738413718871,82.6,228.52,228.48,8.09351065]
[1738413719171,82.6,228.52,228.5,8.09351065]
[1738413719465,82.6,228.56,228.5,8.09351065]
[1738413723154,82.6,228.55,228.5,8.09351065]
[1738413724259,82.6,228.55,228.49,8.09351065]
[1738413725272,82.6,228.55,228.48,8.09351065]
[1738413725480,82.6,228.55,228.48,12.47011065]
[1738413727573,82.6,228.55,228.49,8.09351065]
[1738413729086,82.6,228.54,228.49,8.09351065]
[1738413729476,82.6,228.54,228.49,12.47001065]
[1738413731489,82.6,228.54,228.48,8.09351065]
[1738413731786,90.69351065,228.54,228.46,8.09351065]
[1738413732164,90.69351065,228.54,228.47,8.09351065]
[1738413732363,8.09351065,228.52,228.45,8.09351065]
[1738413732589,90.69351065,228.51,228.43,9.73441065]
[1738413732882,8.09351065,228.49,228.43,1.6409]
[1738413733496,90.69351065,228.48,228.41,14.52221065]
[1738413733686,8.09351065,228.47,228.41,6.4287]
[1738413733877,90.69351065,228.48,228.41,14.52221065]
[1738413737893,82.6,228.48,228.42,8.09351065]
[1738413743611,82.6,228.48,228.43,8.09351065]
[1738413743996,82.6,228.47,228.43,8.09351065]
[1738413745002,82.6,228.47,228.44,8.09351065]
[1738413745189,82.6,228.47,228.46,8.09351065]
[1738413745790,82.6,228.47,228.44,8.09351065]
[1738413748408,82.6,228.47,228.44,12.47101065]
[1738413748902,82.6,228.47,228.45,8.09351065]
[1738413750004,82.6,228.47,228.44,8.09351065]
[1738413753406,82.6,228.47,228.43,8.09351065]
[1738413753711,82.6,228.47,228.41,14.52221065]
[1738413753890,82.6,228.46,228.41,14.52221065]
[1738413754091,82.6,228.46,228.42,8.09351065]
[1738413756510,82.6,228.46,228.41,10.8067]
[1738413756714,82.6,228.46,228.44,8.09351065]
[1738413759312,82.6,228.46,228.43,8.09351065]
[1738413764618,82.6,228.46,228.44,8.09351065]
[1738413768217,82.6,228.46,228.45,8.09351065]
[1738413770028,82.6,228.46,228.45,12.47081065]
[1738413770725,90.69351065,228.54,228.45,8.09351065]
[1738413771027,90.69351065,228.53,228.46,8.09351065]
[1738413771413,8.09351065,228.52,228.44,8.09351065]
[1738413773035,8.09351065,228.52,228.45,8.09351065]
[1738413775352,90.69351065,228.53,228.46,8.09351065]
[1738413775651,82.6,228.53,228.47,8.09351065]
[1738413776018,82.6,228.53,228.48,8.09351065]
[1738413776542,82.6,228.53,228.47,8.09351065]
[1738413776737,82.6,228.52,228.47,8.09351065]
[1738413780849,82.6,228.52,228.46,8.09351065]
[1738413781941,82.6,228.52,228.47,8.09351065]
[1738413782537,82.6,228.51,228.47,8.09351065]
[1738413784451,82.6,228.51,228.48,8.09351065]
[1738413789049,82.6,228.51,228.5,8.09351065]
[1738413799135,82.6,228.51,228.49,8.09351065]
[1738413801469,82.6,228.51,228.47,4.3768]
[1738413801470,82.6,228.51,228.47,8.09351065]
[1738413803172,82.6,228.51,228.48,8.09351065]
[1738413803344,82.6,228.51,228.49,8.09351065]
[1738413803674,82.6,228.51,228.5,8.09351065]
[1738413804866,82.6,228.51,228.5,12.46981065]
[1738413806365,82.6,228.58,228.5,12.46981065]
[1738413806669,8.09351065,228.59,228.46,13.41184853]
[1738413806670,82.6,228.57,228.52,8.09351065]
[1738413807771,8.09351065,228.56,228.49,8.09351065]
[1738413807974,90.69351065,228.57,228.5,8.09351065]
[1738413808154,90.69351065,228.57,228.51,8.09351065]
[1738413808155,82.6,228.57,228.51,8.09351065]
[1738413808661,82.6,228.57,228.52,8.09351065]
[1738413811186,82.6,228.57,228.53,8.09351065]
[1738413812055,82.6,228.57,228.52,8.09351065]